[Event "Early-Titled-Tuesday-Blitz-March-12-2024"]
[Site "Chess.com"]
[Date "2024.03.12"]
[Round "3"]
[White "cthulhuuu"]
[Black "Airquake"]
[Result "1/2-1/2"]
[WhiteElo "2397"]
[BlackElo "2652"]
[TimeControl "180+1"]
[EndTime "8:28:47 PDT"]
[Termination "Game drawn - insufficient material"]

1. e4 {[%clk 0:02:59.9]} 1... d6 {[%clk 0:03:00.9]} 2. d4 {[%clk 0:02:52.2]}
2... e6 {[%clk 0:03:01.8]} 3. f4 {[%clk 0:02:50.9]} 3... Ne7 {[%clk 0:03:02.7]}
4. Nf3 {[%clk 0:02:51.1]} 4... Nd7 {[%clk 0:03:03.6]} 5. Bd3 {[%clk 0:02:51.1]}
5... g6 {[%clk 0:03:03.6]} 6. O-O {[%clk 0:02:51.3]} 6... Bg7 {[%clk 0:03:04.1]}
7. c3 {[%clk 0:02:50.1]} 7... b6 {[%clk 0:03:03.1]} 8. e5 {[%clk 0:02:46.1]}
8... Bb7 {[%clk 0:03:02.8]} 9. Nbd2 {[%clk 0:02:44.5]} 9... O-O {[%clk
0:03:02.8]} 10. Ne4 {[%clk 0:02:40.3]} 10... dxe5 {[%clk 0:03:00.5]} 11. fxe5
{[%clk 0:02:40.3]} 11... c5 {[%clk 0:03:00.2]} 12. Bg5 {[%clk 0:02:36.4]} 12...
h6 {[%clk 0:02:52.6]} 13. Bf6 {[%clk 0:02:18]} 13... cxd4 {[%clk 0:02:43.6]} 14.
cxd4 {[%clk 0:02:12.4]} 14... Bxe4 {[%clk 0:02:39]} 15. Bxe4 {[%clk 0:02:12.5]}
15... Nxf6 {[%clk 0:02:39.6]} 16. exf6 {[%clk 0:02:10.9]} 16... Bxf6 {[%clk
0:02:40.5]} 17. Bxa8 {[%clk 0:02:10.6]} 17... Qxa8 {[%clk 0:02:41.4]} 18. Qd2
{[%clk 0:01:50.4]} 18... Rd8 {[%clk 0:02:41.3]} 19. Qxh6 {[%clk 0:01:48.8]}
19... Nf5 {[%clk 0:02:41.4]} 20. Qf4 {[%clk 0:01:46.2]} 20... Bxd4+ {[%clk
0:02:36.5]} 21. Nxd4 {[%clk 0:01:46.1]} 21... Rxd4 {[%clk 0:02:37.4]} 22. Qf3
{[%clk 0:01:43.1]} 22... Qd8 {[%clk 0:02:21.3]} 23. Rad1 {[%clk 0:01:41.1]}
23... e5 {[%clk 0:02:06.6]} 24. Rxd4 {[%clk 0:01:27.3]} 24... Qxd4+ {[%clk
0:02:05.8]} 25. Kh1 {[%clk 0:01:25.1]} 25... Qxb2 {[%clk 0:01:30]} 26. g4 {[%clk
0:01:16.2]} 26... Nd6 {[%clk 0:01:30.3]} 27. Qd5 {[%clk 0:01:07.4]} 27... Qe2
{[%clk 0:01:30.2]} 28. Rf6 {[%clk 0:00:58]} 28... Qe1+ {[%clk 0:00:56.6]} 29.
Kg2 {[%clk 0:00:57.9]} 29... Qe2+ {[%clk 0:00:57]} 30. Kh3 {[%clk 0:00:28.3]}
30... Qe3+ {[%clk 0:00:55.8]} 31. Rf3 {[%clk 0:00:28.7]} 31... Qe4 {[%clk
0:00:35.9]} 32. Qxe4 {[%clk 0:00:22.6]} 32... Nxe4 {[%clk 0:00:36.1]} 33. Re3
{[%clk 0:00:14.1]} 33... Ng5+ {[%clk 0:00:35.9]} 34. Kg2 {[%clk 0:00:14.3]}
34... f6 {[%clk 0:00:34.2]} 35. Ra3 {[%clk 0:00:14.7]} 35... Ne6 {[%clk
0:00:16.2]} 36. Rxa7 {[%clk 0:00:14.4]} 36... f5 {[%clk 0:00:16.4]} 37. gxf5
{[%clk 0:00:13.9]} 37... gxf5 {[%clk 0:00:17.3]} 38. Rb7 {[%clk 0:00:13.9]}
38... Nf4+ {[%clk 0:00:16.7]} 39. Kf3 {[%clk 0:00:14.4]} 39... Nd5 {[%clk
0:00:17.6]} 40. Rd7 {[%clk 0:00:04.9]} 40... e4+ {[%clk 0:00:17.7]} 41. Kg3
{[%clk 0:00:05.6]} 41... f4+ {[%clk 0:00:14.5]} 42. Kg4 {[%clk 0:00:05.2]} 42...
Nf6+ {[%clk 0:00:14.9]} 43. Kxf4 {[%clk 0:00:05.7]} 43... Nxd7 {[%clk
0:00:15.8]} 44. Kxe4 {[%clk 0:00:06.3]} 44... Nc5+ {[%clk 0:00:08.8]} 45. Kd5
{[%clk 0:00:06.4]} 45... Na4 {[%clk 0:00:09.2]} 46. Kc6 {[%clk 0:00:04.8]} 46...
Nc3 {[%clk 0:00:07.5]} 47. Kxb6 {[%clk 0:00:01.8]} 47... Nxa2 {[%clk 0:00:07.6]}
48. Kc5 {[%clk 0:00:02.2]} 48... Kg7 {[%clk 0:00:07.6]} 49. Kd4 {[%clk
0:00:02.6]} 49... Kh6 {[%clk 0:00:08.5]} 50. Ke3 {[%clk 0:00:03]} 50... Kh5
{[%clk 0:00:09.4]} 51. h4 {[%clk 0:00:02.6]} 51... Kxh4 {[%clk 0:00:10.3]}
1/2-1/2

[Event "Early-Titled-Tuesday-Blitz-March-12-2024"]
[Site "Chess.com"]
[Date "2024.03.12"]
[Round "3"]
[White "AlexPapasimakopoulos"]
[Black "YegoryoCh"]
[Result "1/2-1/2"]
[WhiteElo "2708"]
[BlackElo "2496"]
[TimeControl "180+1"]
[EndTime "8:28:48 PDT"]
[Termination "Game drawn by repetition"]

1. d4 {[%clk 0:03:00.9]} 1... d5 {[%clk 0:02:59.5]} 2. c4 {[%clk 0:03:00.2]}
2... dxc4 {[%clk 0:02:59.6]} 3. Nf3 {[%clk 0:03:00.1]} 3... Nf6 {[%clk
0:02:59.6]} 4. e3 {[%clk 0:03:00.4]} 4... Bg4 {[%clk 0:02:59.9]} 5. Nbd2 {[%clk
0:02:59.5]} 5... a6 {[%clk 0:02:58]} 6. Nxc4 {[%clk 0:02:59.4]} 6... Nc6 {[%clk
0:02:57.9]} 7. Be2 {[%clk 0:02:58.8]} 7... e6 {[%clk 0:02:58.4]} 8. O-O {[%clk
0:02:58.8]} 8... Bd6 {[%clk 0:02:58.6]} 9. b3 {[%clk 0:02:59.2]} 9... O-O {[%clk
0:02:58.2]} 10. Bb2 {[%clk 0:02:59.3]} 10... Qe7 {[%clk 0:02:58.9]} 11. a3
{[%clk 0:02:59]} 11... Rfd8 {[%clk 0:02:57.7]} 12. h3 {[%clk 0:02:57.1]} 12...
Bh5 {[%clk 0:02:57.4]} 13. Rc1 {[%clk 0:02:51.6]} 13... Rac8 {[%clk 0:02:42.2]}
14. b4 {[%clk 0:02:49.9]} 14... Qf8 {[%clk 0:02:22.3]} 15. Re1 {[%clk 0:02:47]}
15... Nd5 {[%clk 0:02:22.4]} 16. Nfd2 {[%clk 0:02:43.5]} 16... Bxe2 {[%clk
0:02:21.6]} 17. Qxe2 {[%clk 0:02:44.4]} 17... Qe7 {[%clk 0:02:08.9]} 18. Nb3
{[%clk 0:02:44.4]} 18... e5 {[%clk 0:02:06]} 19. dxe5 {[%clk 0:02:30.6]} 19...
Nxe5 {[%clk 0:02:06.1]} 20. Nxd6 {[%clk 0:02:29.7]} 20... Rxd6 {[%clk 0:02:04]}
21. Nc5 {[%clk 0:02:10.6]} 21... Rb8 {[%clk 0:01:48.9]} 22. Qh5 {[%clk
0:02:03.3]} 22... Nd7 {[%clk 0:01:42.5]} 23. e4 {[%clk 0:01:52]} 23... N5f6
{[%clk 0:01:34.6]} 24. Qg5 {[%clk 0:01:44.7]} 24... Nxc5 {[%clk 0:01:31.2]} 25.
bxc5 {[%clk 0:01:34.7]} 25... Re6 {[%clk 0:01:31.5]} 26. f3 {[%clk 0:01:32.7]}
26... Rd8 {[%clk 0:01:28.5]} 27. Red1 {[%clk 0:01:32.1]} 27... h6 {[%clk
0:01:26.3]} 28. Qe3 {[%clk 0:01:17.2]} 28... Rd7 {[%clk 0:01:23]} 29. Rd4 {[%clk
0:01:08.2]} 29... Qd8 {[%clk 0:00:52.9]} 30. Rcd1 {[%clk 0:01:05.8]} 30... Ree7
{[%clk 0:00:51.1]} 31. Kf2 {[%clk 0:00:49.8]} 31... Rxd4 {[%clk 0:00:38.3]} 32.
Bxd4 {[%clk 0:00:42.1]} 32... Rd7 {[%clk 0:00:38.1]} 33. Bxf6 {[%clk 0:00:38.2]}
33... gxf6 {[%clk 0:00:37.7]} 34. Rxd7 {[%clk 0:00:34]} 34... Qxd7 {[%clk
0:00:38.6]} 35. Qxh6 {[%clk 0:00:34.2]} 35... Qd4+ {[%clk 0:00:38.5]} 36. Qe3
{[%clk 0:00:34.4]} 36... Qb2+ {[%clk 0:00:38.9]} 37. Kg3 {[%clk 0:00:34.5]}
37... Qe5+ {[%clk 0:00:39.1]} 38. f4 {[%clk 0:00:34]} 38... Qb2 {[%clk
0:00:39.5]} 39. h4 {[%clk 0:00:33.9]} 39... b5 {[%clk 0:00:37.4]} 40. cxb6
{[%clk 0:00:33.6]} 40... cxb6 {[%clk 0:00:37.7]} 41. h5 {[%clk 0:00:27.9]} 41...
b5 {[%clk 0:00:33.2]} 42. Kh3 {[%clk 0:00:21.5]} 42... Kh7 {[%clk 0:00:25.9]}
43. g3 {[%clk 0:00:19.8]} 43... a5 {[%clk 0:00:24.7]} 44. Qa7 {[%clk 0:00:19.6]}
44... Qb3 {[%clk 0:00:11.2]} 45. Qxa5 {[%clk 0:00:17.3]} 45... Qd1 {[%clk
0:00:11.8]} 46. Qxb5 {[%clk 0:00:15.4]} 46... Qh1+ {[%clk 0:00:11.9]} 47. Kg4
{[%clk 0:00:15.1]} 47... Qd1+ {[%clk 0:00:12.4]} 48. Kh3 {[%clk 0:00:08.1]}
48... Qh1+ {[%clk 0:00:12.5]} 49. Kg4 {[%clk 0:00:07]} 49... Qd1+ {[%clk
0:00:12.2]} 50. Kh4 {[%clk 0:00:06.4]} 50... Qh1+ {[%clk 0:00:12]} 51. Kg4
{[%clk 0:00:06.3]} 1/2-1/2

[Event "Early-Titled-Tuesday-Blitz-March-12-2024"]
[Site "Chess.com"]
[Date "2024.03.12"]
[Round "3"]
[White "AnishOnYoutube"]
[Black "blitzking1729"]
[Result "1-0"]
[WhiteElo "3058"]
[BlackElo "2808"]
[TimeControl "180+1"]
[EndTime "8:28:51 PDT"]
[Termination "AnishOnYoutube won by resignation"]

1. d4 {[%clk 0:03:00.9]} 1... d5 {[%clk 0:02:58.1]} 2. c4 {[%clk 0:03:00.8]}
2... c6 {[%clk 0:02:58.3]} 3. Nf3 {[%clk 0:03:00.8]} 3... Nf6 {[%clk 0:02:58.3]}
4. g3 {[%clk 0:02:58.7]} 4... Bf5 {[%clk 0:02:56.5]} 5. Nc3 {[%clk 0:02:57.8]}
5... e6 {[%clk 0:02:56.6]} 6. Nh4 {[%clk 0:02:57.8]} 6... dxc4 {[%clk
0:02:56.4]} 7. Nxf5 {[%clk 0:02:57.4]} 7... exf5 {[%clk 0:02:56.9]} 8. e3 {[%clk
0:02:51.8]} 8... Bd6 {[%clk 0:02:56.2]} 9. Bxc4 {[%clk 0:02:51.9]} 9... O-O
{[%clk 0:02:56.3]} 10. Qf3 {[%clk 0:02:50.9]} 10... g6 {[%clk 0:02:56.3]} 11. h3
{[%clk 0:02:50.9]} 11... Nbd7 {[%clk 0:02:53.8]} 12. g4 {[%clk 0:02:51.1]} 12...
fxg4 {[%clk 0:02:45]} 13. hxg4 {[%clk 0:02:51.4]} 13... b5 {[%clk 0:02:45]} 14.
Bb3 {[%clk 0:02:46.7]} 14... b4 {[%clk 0:02:45.4]} 15. Ne2 {[%clk 0:02:37.5]}
15... Qe7 {[%clk 0:02:22]} 16. Qxc6 {[%clk 0:01:30.5]} 16... Nxg4 {[%clk
0:02:11.6]} 17. Qg2 {[%clk 0:01:17.5]} 17... Ndf6 {[%clk 0:02:01.4]} 18. Bc2
{[%clk 0:00:47.9]} 18... Rac8 {[%clk 0:01:59]} 19. Bd3 {[%clk 0:00:48.1]} 19...
Rfe8 {[%clk 0:01:30.7]} 20. e4 {[%clk 0:00:43]} 20... Nxf2 {[%clk 0:01:16.2]}
21. Kxf2 {[%clk 0:00:39.4]} 21... Nxe4+ {[%clk 0:01:14.8]} 22. Bxe4 {[%clk
0:00:35.9]} 22... Qxe4 {[%clk 0:01:15.7]} 23. Qxe4 {[%clk 0:00:35.9]} 23... Rxe4
{[%clk 0:01:16.5]} 24. Kf3 {[%clk 0:00:31.8]} 24... f5 {[%clk 0:01:00.3]} 25.
Rd1 {[%clk 0:00:27]} 25... Rc2 {[%clk 0:00:54.4]} 26. Rd2 {[%clk 0:00:25.3]}
26... Rc4 {[%clk 0:00:51.5]} 27. b3 {[%clk 0:00:25.2]} 27... Rc7 {[%clk
0:00:46.8]} 28. Rd3 {[%clk 0:00:25.1]} 28... Rc2 {[%clk 0:00:43.1]} 29. Be3
{[%clk 0:00:20.5]} 29... g5 {[%clk 0:00:39.4]} 30. Rd2 {[%clk 0:00:09.7]} 30...
g4+ {[%clk 0:00:32.5]} 31. Kf2 {[%clk 0:00:10.2]} 31... Rxd2 {[%clk 0:00:12.7]}
32. Bxd2 {[%clk 0:00:09.9]} 32... f4 {[%clk 0:00:13.6]} 33. Rg1 {[%clk
0:00:08.9]} 33... h5 {[%clk 0:00:13.9]} 34. Rh1 {[%clk 0:00:06.4]} 34... f3
{[%clk 0:00:12.8]} 35. Ng3 {[%clk 0:00:06.7]} 35... Rxd4 {[%clk 0:00:13.1]} 36.
Be3 {[%clk 0:00:07.2]} 36... Rd3 {[%clk 0:00:13.6]} 37. Nxh5 {[%clk 0:00:06.4]}
37... Rc3 {[%clk 0:00:12.9]} 38. Nf6+ {[%clk 0:00:06.7]} 38... Kf7 {[%clk
0:00:13.3]} 39. Nxg4 {[%clk 0:00:07.2]} 39... Rc2+ {[%clk 0:00:14]} 40. Kxf3
{[%clk 0:00:07.9]} 40... Rxa2 {[%clk 0:00:14.8]} 41. Rh7+ {[%clk 0:00:08.3]}
41... Ke6 {[%clk 0:00:14.9]} 42. Rh6+ {[%clk 0:00:08.3]} 42... Kd7 {[%clk
0:00:14.7]} 43. Nf6+ {[%clk 0:00:08.6]} 43... Kc8 {[%clk 0:00:13.4]} 44. Rh8+
{[%clk 0:00:07]} 44... Kb7 {[%clk 0:00:13]} 45. Rh7+ {[%clk 0:00:07.4]} 45...
Kc6 {[%clk 0:00:12.8]} 46. Rh6 {[%clk 0:00:07.6]} 46... Kb7 {[%clk 0:00:12.6]}
47. Ne4 {[%clk 0:00:07.8]} 47... Be5 {[%clk 0:00:11.4]} 48. Nc5+ {[%clk
0:00:07.1]} 48... Kc7 {[%clk 0:00:11.2]} 49. Ke4 {[%clk 0:00:07.2]} 49... Bc3
{[%clk 0:00:10.2]} 50. Kd5 {[%clk 0:00:06.8]} 50... Bd2 {[%clk 0:00:09.6]} 51.
Rh7+ {[%clk 0:00:06.2]} 51... Kd8 {[%clk 0:00:10.2]} 52. Bxd2 {[%clk 0:00:05.5]}
52... Rxd2+ {[%clk 0:00:10.2]} 53. Kc6 {[%clk 0:00:06.4]} 53... Rc2 {[%clk
0:00:08.7]} 54. Rxa7 {[%clk 0:00:05.8]} 1-0

[Event "Early-Titled-Tuesday-Blitz-March-12-2024"]
[Site "Chess.com"]
[Date "2024.03.12"]
[Round "3"]
[White "StankovicIvan"]
[Black "bubeliang"]
[Result "1/2-1/2"]
[WhiteElo "2529"]
[BlackElo "2803"]
[TimeControl "180+1"]
[EndTime "8:28:51 PDT"]
[Termination "Game drawn by repetition"]

1. e4 {[%clk 0:03:00.9]} 1... c6 {[%clk 0:02:58]} 2. d4 {[%clk 0:03:00.6]} 2...
d5 {[%clk 0:02:58.9]} 3. e5 {[%clk 0:03:01.2]} 3... c5 {[%clk 0:02:59.1]} 4.
dxc5 {[%clk 0:03:01.1]} 4... e6 {[%clk 0:02:58.9]} 5. Be3 {[%clk 0:03:00.2]}
5... Nd7 {[%clk 0:02:57.5]} 6. Bb5 {[%clk 0:03:00.3]} 6... Qc7 {[%clk
0:02:56.4]} 7. Nf3 {[%clk 0:02:43.2]} 7... Bxc5 {[%clk 0:02:51.9]} 8. Bxc5
{[%clk 0:02:40.3]} 8... Qxc5 {[%clk 0:02:52.8]} 9. Bd3 {[%clk 0:02:40.4]} 9...
Qc7 {[%clk 0:02:50.1]} 10. Qe2 {[%clk 0:02:37.9]} 10... Ne7 {[%clk 0:02:44.2]}
11. O-O {[%clk 0:02:34.1]} 11... Ng6 {[%clk 0:02:44.3]} 12. Re1 {[%clk
0:02:33.7]} 12... Qb6 {[%clk 0:02:34.3]} 13. c4 {[%clk 0:02:21.2]} 13... Nf4
{[%clk 0:02:28.6]} 14. Qd2 {[%clk 0:02:14.6]} 14... Nxd3 {[%clk 0:02:26.8]} 15.
Qxd3 {[%clk 0:02:15]} 15... Qxb2 {[%clk 0:02:26.3]} 16. Nc3 {[%clk 0:01:33.7]}
16... dxc4 {[%clk 0:02:20.6]} 17. Qxc4 {[%clk 0:01:31.5]} 17... O-O {[%clk
0:02:18.7]} 18. Rab1 {[%clk 0:01:20.3]} 18... Nb6 {[%clk 0:02:04.5]} 19. Qd4
{[%clk 0:01:01.3]} 19... Qc2 {[%clk 0:01:56.8]} 20. Ne4 {[%clk 0:00:15.6]} 20...
Bd7 {[%clk 0:01:41.2]} 21. Rxb6 {[%clk 0:00:14]} 21... axb6 {[%clk 0:01:38.8]}
22. Qxd7 {[%clk 0:00:14.6]} 22... Rad8 {[%clk 0:01:36.5]} 23. Qe7 {[%clk
0:00:14.3]} 23... Rd1 {[%clk 0:01:35.3]} 24. Ng3 {[%clk 0:00:11]} 24... h6
{[%clk 0:01:25.4]} 25. Qh4 {[%clk 0:00:10]} 25... Rc8 {[%clk 0:01:22.7]} 26. Qe4
{[%clk 0:00:09]} 26... Qxe4 {[%clk 0:01:13.5]} 27. Nxe4 {[%clk 0:00:09.9]} 27...
Rd3 {[%clk 0:00:59.7]} 28. Kf1 {[%clk 0:00:08.8]} 28... Rc2 {[%clk 0:00:55.1]}
29. a4 {[%clk 0:00:07.9]} 29... Ra2 {[%clk 0:00:53.6]} 30. Nd6 {[%clk
0:00:08.4]} 30... Rxa4 {[%clk 0:00:50.5]} 31. Nxb7 {[%clk 0:00:08.6]} 31... Rc3
{[%clk 0:00:49.3]} 32. Rd1 {[%clk 0:00:08]} 32... Rc2 {[%clk 0:00:48.3]} 33. Ne1
{[%clk 0:00:08.3]} 33... Rb2 {[%clk 0:00:47.6]} 34. Nd3 {[%clk 0:00:08.4]} 34...
Rc2 {[%clk 0:00:47.7]} 35. Nd6 {[%clk 0:00:08.3]} 35... Raa2 {[%clk 0:00:44.6]}
36. Ne4 {[%clk 0:00:08.2]} 36... Rc8 {[%clk 0:00:39.4]} 37. f3 {[%clk
0:00:07.1]} 37... Ra3 {[%clk 0:00:37.4]} 38. Ndf2 {[%clk 0:00:06.8]} 38... b5
{[%clk 0:00:37]} 39. g3 {[%clk 0:00:07.2]} 39... Rxf3 {[%clk 0:00:35.6]} 40. Rd7
{[%clk 0:00:07]} 40... Rb8 {[%clk 0:00:32.5]} 41. Kg2 {[%clk 0:00:07.4]} 41...
Ra3 {[%clk 0:00:32]} 42. Nd6 {[%clk 0:00:07.9]} 42... b4 {[%clk 0:00:29.9]} 43.
Nxf7 {[%clk 0:00:07.2]} 43... b3 {[%clk 0:00:29.3]} 44. Ng4 {[%clk 0:00:07.3]}
44... b2 {[%clk 0:00:18]} 45. Nfxh6+ {[%clk 0:00:06.3]} 45... Kf8 {[%clk
0:00:16]} 46. Nf6 {[%clk 0:00:04.1]} 46... gxf6 {[%clk 0:00:10.5]} 47. exf6
{[%clk 0:00:04.4]} 47... b1=Q {[%clk 0:00:03.3]} 48. Rf7+ {[%clk 0:00:04.5]}
48... Ke8 {[%clk 0:00:03.9]} 49. Re7+ {[%clk 0:00:05]} 49... Kd8 {[%clk
0:00:04.4]} 50. Nf7+ {[%clk 0:00:05.7]} 50... Kc8 {[%clk 0:00:04.4]} 51. Nd6+
{[%clk 0:00:06]} 51... Kd8 {[%clk 0:00:05]} 52. Nf7+ {[%clk 0:00:05.8]} 52...
Kc8 {[%clk 0:00:04.5]} 53. Nd6+ {[%clk 0:00:05.9]} 53... Kd8 {[%clk 0:00:05]}
54. Nf7+ {[%clk 0:00:06.3]} 1/2-1/2

[Event "Early-Titled-Tuesday-Blitz-March-12-2024"]
[Site "Chess.com"]
[Date "2024.03.12"]
[Round "3"]
[White "Zohid6"]
[Black "electrosaw"]
[Result "1/2-1/2"]
[WhiteElo "2895"]
[BlackElo "2556"]
[TimeControl "180+1"]
[EndTime "8:28:52 PDT"]
[Termination "Game drawn by repetition"]

1. e4 {[%clk 0:03:00.9]} 1... c5 {[%clk 0:02:59.3]} 2. Nf3 {[%clk 0:03:01]} 2...
b6 {[%clk 0:02:59.9]} 3. c4 {[%clk 0:02:54.6]} 3... Bb7 {[%clk 0:02:59.9]} 4.
Nc3 {[%clk 0:02:54.5]} 4... g6 {[%clk 0:02:58.2]} 5. d4 {[%clk 0:02:54.2]} 5...
cxd4 {[%clk 0:02:59.1]} 6. Qxd4 {[%clk 0:02:42.5]} 6... Nf6 {[%clk 0:02:58.8]}
7. e5 {[%clk 0:02:42.5]} 7... Nc6 {[%clk 0:02:57.7]} 8. Qh4 {[%clk 0:02:14.5]}
8... Ng8 {[%clk 0:02:27.5]} 9. Bf4 {[%clk 0:02:09.4]} 9... Bg7 {[%clk
0:02:21.9]} 10. O-O-O {[%clk 0:02:03.9]} 10... h5 {[%clk 0:02:21]} 11. Bd3
{[%clk 0:01:33.3]} 11... Nb4 {[%clk 0:02:01]} 12. e6 {[%clk 0:01:16]} 12...
Nxd3+ {[%clk 0:01:54.1]} 13. Rxd3 {[%clk 0:01:15.5]} 13... fxe6 {[%clk
0:01:52.3]} 14. Qg5 {[%clk 0:01:06.8]} 14... Kf7 {[%clk 0:01:48.8]} 15. Nh4
{[%clk 0:00:52.4]} 15... Rh6 {[%clk 0:01:26.3]} 16. Qg3 {[%clk 0:00:49.8]} 16...
Nf6 {[%clk 0:01:26.5]} 17. Re1 {[%clk 0:00:35.2]} 17... Rc8 {[%clk 0:01:16.6]}
18. Kb1 {[%clk 0:00:34.3]} 18... Rxc4 {[%clk 0:00:56.2]} 19. Bxh6 {[%clk
0:00:24.3]} 19... Rg4 {[%clk 0:00:55.8]} 20. Qe3 {[%clk 0:00:18.9]} 20... Rxh4
{[%clk 0:00:47.8]} 21. Bxg7 {[%clk 0:00:19.1]} 21... Kxg7 {[%clk 0:00:48.7]} 22.
h3 {[%clk 0:00:20]} 22... Qe8 {[%clk 0:00:40.3]} 23. f4 {[%clk 0:00:19.9]} 23...
Qb8 {[%clk 0:00:22.8]} 24. Ne2 {[%clk 0:00:13.4]} 24... Be4 {[%clk 0:00:21.3]}
25. Rd1 {[%clk 0:00:10.5]} 25... Bxd3+ {[%clk 0:00:21.4]} 26. Rxd3 {[%clk
0:00:11.4]} 26... Nd5 {[%clk 0:00:21.8]} 27. Qf2 {[%clk 0:00:06.6]} 27... Nxf4
{[%clk 0:00:19.2]} 28. Rxd7 {[%clk 0:00:05.5]} 28... g5 {[%clk 0:00:17.5]} 29.
Rxe7+ {[%clk 0:00:04.7]} 29... Kf6 {[%clk 0:00:17.6]} 30. Rh7 {[%clk 0:00:04]}
30... Kg6 {[%clk 0:00:17.6]} 31. Rd7 {[%clk 0:00:02.8]} 31... Qe5 {[%clk
0:00:17.6]} 32. Nc3 {[%clk 0:00:01.5]} 32... Qf5+ {[%clk 0:00:14.3]} 33. Ka1
{[%clk 0:00:01.5]} 33... Nd5 {[%clk 0:00:08.8]} 34. Qxf5+ {[%clk 0:00:01.7]}
34... Kxf5 {[%clk 0:00:09.7]} 35. Nxd5 {[%clk 0:00:02.3]} 35... exd5 {[%clk
0:00:10.6]} 36. Rxd5+ {[%clk 0:00:03.1]} 36... Kf4 {[%clk 0:00:11.3]} 37. g3+
{[%clk 0:00:01.7]} 37... Kxg3 {[%clk 0:00:11.7]} 38. Rxg5+ {[%clk 0:00:02.5]}
38... Kxh3 {[%clk 0:00:12.4]} 39. a3 {[%clk 0:00:02.8]} 39... Kh2 {[%clk
0:00:12.4]} 40. Ka2 {[%clk 0:00:03]} 40... Rh3 {[%clk 0:00:12.5]} 41. b4 {[%clk
0:00:03.5]} 41... h4 {[%clk 0:00:13.1]} 42. Rg7 {[%clk 0:00:03.9]} 42... Rg3
{[%clk 0:00:11.3]} 43. Rxa7 {[%clk 0:00:04]} 43... h3 {[%clk 0:00:11.9]} 44. Rb7
{[%clk 0:00:03.8]} 44... Rg6 {[%clk 0:00:11.3]} 45. Rh7 {[%clk 0:00:03.1]} 45...
Kg2 {[%clk 0:00:11.4]} 46. Kb3 {[%clk 0:00:03.9]} 46... h2 {[%clk 0:00:11.6]}
47. Kc4 {[%clk 0:00:04.4]} 47... h1=Q {[%clk 0:00:12]} 48. Rxh1 {[%clk
0:00:04.5]} 48... Kxh1 {[%clk 0:00:12.9]} 49. a4 {[%clk 0:00:05.3]} 49... Kg2
{[%clk 0:00:13.2]} 50. a5 {[%clk 0:00:05.8]} 50... bxa5 {[%clk 0:00:14]} 51.
bxa5 {[%clk 0:00:06.5]} 51... Kf3 {[%clk 0:00:13.6]} 52. Kb5 {[%clk 0:00:06.2]}
52... Ke4 {[%clk 0:00:14.3]} 53. a6 {[%clk 0:00:07]} 53... Kd5 {[%clk 0:00:15]}
54. a7 {[%clk 0:00:07.7]} 54... Rg8 {[%clk 0:00:15.3]} 55. Kb6 {[%clk
0:00:08.4]} 55... Kd6 {[%clk 0:00:15.3]} 56. Kb7 {[%clk 0:00:09]} 56... Rg7+
{[%clk 0:00:13.5]} 57. Kb6 {[%clk 0:00:08.6]} 57... Rg8 {[%clk 0:00:11]} 58. Kb7
{[%clk 0:00:08.8]} 58... Rg7+ {[%clk 0:00:08.5]} 59. Kb8 {[%clk 0:00:08.8]}
59... Rg8+ {[%clk 0:00:08.7]} 60. Kb7 {[%clk 0:00:08.9]} 1/2-1/2